Workbook

Sheet Лист1
A1: Школа | C1: МБОУ СОШ №4 с.Верхнеяркеево | F1: Утвердил: | G1: должность | H1: директор
A2: Типовое примерное меню приготавливаемых блюд | G2: фамилия | H2: Хакимова С.М.
A3: Возрастная категория | E3: 7-11 лет | G3: дата | H3: 12 | I3: 1 | J3: 2026
H4: день | I4: месяц | J4: год
A5: Неделя | B5: День недели | C5: Прием пищи | D5: Раздел меню | E5: Блюда | F5: Вес блюда, г | G5: Белки | H5: Жиры | I5: Углеводы | J5: Калорийность | K5: № рецептуры | L5: Цена
A6: 1 | B6: 1 | C6: Завтрак | D6: гор.блюдо | E6: Макаронные изделия отварные 160 | F6: 160 | G6: 5.74 | H6: 4.23 | I6: 38.26 | J6: 217.73 | K6: 197 | L6: 7.84
D7: гор.блюдо | E7: Биточки рубленые из мяса птицы-60. | F7: 60 | G7: 11.01 | H7: 3.11 | I7: 9.97 | J7: 113.74 | K7: 126 | L7: 31.57
D8: гор.блюдо | E8: Соус томатный-50 | F8: 50 | G8: 0.57 | H8: 2.28 | I8: 3.56 | J8: 36.56 | K8: 225 | L8: 4.84
D9: гор.напиток | E9: Чай с лимоном 200 | F9: 200 | G9: 0.14 | H9: 0.03 | I9: 10.22 | J9: 42.89 | K9: 273 | L9: 2.74
D10: хлеб | E10: Хлеб пшеничный, обогащенный (для детского питания) | F10: 25 | G10: 1.98 | H10: 0.25 | I10: 12.04 | J10: 60.26 | K10: 1.00 | L10: 1.60
D11: хлеб | E11: Хлеб ржаной,обогащенный витаминами-15 | F11: 15 | G11: 0.35 | H11: 0.11 | I11: 1.1 | J11: 6.53 | K11: 3 | L11: 1.95
D13: масло | E13: Масло (порциями) | F13: 10 | G13: 0.08 | H13: 7.25 | I13: 0.13 | J13: 66.1 | K13: 7 | L13: 8
D14: итого | F14: =SUM(F6:F13) -> 520 | G14: =SUM(G6:G13) -> 19.87 | H14: =SUM(H6:H13) -> 17.26 | I14: =SUM(I6:I13) -> 75.28 | J14: =SUM(J6:J13) -> 543.81 | L14: =SUM(L6:L13) -> 58.54
A15: =A6 -> 1 | B15: =B6 -> 1 | C15: Обед | D15: закуска
D16: 1 блюдо
D17: 2 блюдо
D18: напиток
D19: хлеб бел.
D20: хлеб черн.
D23: итого | L23: =SUM(L15:L22) -> 0
A24: =A6 -> 1 | B24: =B6 -> 1 | C24: Итого за день: | F24: =SUM(F6:F13) -> 520 | G24: =SUM(G6:G13) -> 19.87 | H24: =SUM(H6:H13) -> 17.26 | I24: =SUM(I6:I13) -> 75.28 | J24: =SUM(J6:J13) -> 543.81 | L24: =SUM(L6:L13) -> 58.54
A25: 1 | B25: 2 | C25: Завтрак | D25: гор.блюдо | E25: Каша рисовая молочная вязкая -185 | F25: 185 | G25: 5.21 | H25: 6.95 | I25: 37.92 | J25: 233.84 | K25: 186 | L25: 16.7
D26: гор.блюдо | E26: Борщ из капусты с картофелем и сметаной | F26: 270 | G26: 1.56 | H26: 1.56 | I26: 1.56 | J26: 1.56 | K26: 82 | L26: 55.73
D27: сыр | E27: Сыр(порциями) | F27: 10 | G27: 2.32 | H27: 2.95 | I27: 0 | J27: 36.4 | K27: 9 | L27: 7.7
D28: гор.напиток | E28: Компот из смеси сухофруктов | F28: 200 | G28: 0.78 | H28: 0.06 | I28: 30.1 | J28: 30.1 | K28: 707 | L28: 5.48
D29: хлеб | E29: Хлеб пшеничный, обогащенный (для детского питания) | F29: 25 | G29: 1.98 | H29: 0.25 | I29: 12.04 | J29: 60.26 | K29: 1.00 | L29: 1.60
D30: хлеб | E30: Хлеб ржаной,обогащенный витаминами-15 | F30: 15 | G30: 0.35 | H30: 0.11 | I30: 1.1 | J30: 6.53 | K30: 3 | L30: 1.95
D31: фрукты | E31: Яблоко | F31: 100 | G31: 0.4 | H31: 0.4 | I31: 9.8 | J31: 47 | L31: 15.3
D32: итого | F32: =SUM(F25:F31) -> 805 | G32: =SUM(G25:G31) -> 12.59795319 | H32: =SUM(H25:H31) -> 12.28155319 | I32: =SUM(I25:I31) -> 92.51755319 | J32: =SUM(J25:J31) -> 415.6905532 | L32: =SUM(L25:L31) -> 104.46
A33: =A25 -> 1 | B33: =B25 -> 2 | C33: Обед | D33: закуска
D34: 1 блюдо
D35: 2 блюдо
D36: напиток
D37: хлеб бел.
D38: хлеб черн.
D41: итого
A42: =A25 -> 1 | B42: =B25 -> 2 | C42: Итого за день: | F42: =SUM(F25:F31) -> 805 | G42: =SUM(G25:G31) -> 12.60 | H42: =SUM(H25:H31) -> 12.28 | I42: =SUM(I25:I31) -> 92.52 | J42: =SUM(J25:J31) -> 415.69 | L42: =L32 -> 104.46
A43: 1 | B43: 3 | C43: Завтрак | D43: гор.блюдо | E43: Каша гречневая 170 | F43: 170 | G43: 9.87 | H43: 6.2 | I43: 44.6 | J43: 273.29 | K43: 330 | L43: 7.51
D44: гор.блюдо | E44: Тефтели из говядины с рисом | F44: 60 | G44: 8.24 | H44: 12.18 | I44: 8.5 | J44: 176.53 | K44: 202 | L44: 34.58
D45: гор.блюдо | E45: Соус томатный 40 | F45: 40 | G45: 0.5 | H45: 2.27 | I45: 3.32 | J45: 35.29 | K45: 216 | L45: 2.82
D46: гор.напиток | E46: Чай с сахаром 200 | F46: 200 | G46: 0.08 | H46: 0.02 | I46: 10.01 | J46: 40.51 | K46: 271 | L46: 1.06
D47: хлеб | E47: Хлеб пшеничный, обогащенный (для детского питания) | F47: 25 | G47: 1.98 | H47: 0.25 | I47: 12.04 | J47: 60.26 | K47: 1.00 | L47: 1.60
D48: хлеб | E48: Хлеб ржаной,обогащенный витаминами-15 | F48: 15 | G48: 0.35 | H48: 0.11 | I48: 1.1 | J48: 6.53 | K48: 3 | L48: 1.95
D49: фрукты | E49: Яблоки свежие | F49: 100 | G49: 0.4 | H49: 0.4 | I49: 9.8 | J49: 47 | L49: 15.3
D50: закуска | E50: Салат из свеклы с растительным маслом | F50: 100 | G50: 0.99 | H50: 5 | I50: 5.94 | J50: 71.9 | K50: 24 | L50: 4.44
D51: итого | F51: =SUM(F43:F50) -> 710 | G51: =SUM(G43:G50) -> 22.41 | H51: =SUM(H43:H50) -> 26.43 | I51: =SUM(I43:I50) -> 95.31 | J51: =SUM(J43:J50) -> 711.31 | L51: =SUM(L43:L50) -> 69.26
A52: =A43 -> 1 | B52: =B43 -> 3 | C52: Обед | D52: закуска
D53: 1 блюдо
D54: 2 блюдо
D55: напиток
D56: вафли
D57: хлеб бел.
D58: хлеб черн.
D61: итого | F61: =SUM(F52:F59) -> 0 | G61: =SUM(G52:G60) -> 0 | H61: =SUM(H52:H60) -> 0 | I61: 0 | J61: 0
A62: =A43 -> 1 | B62: =B43 -> 3 | C62: Итого за день: | F62: =SUM(F43:F50) -> 710 | G62: =SUM(G43:G50) -> 22.41 | H62: =SUM(H43:H50) -> 26.43 | I62: =SUM(I43:I50) -> 95.31 | J62: =SUM(J43:J50) -> 711.31 | L62: =SUM(L43:L50) -> 69.26
A63: 1 | B63: 4 | C63: Завтрак | D63: гор.блюдо | E63: Каша молочная "Дружба" | F63: 200 | G63: 6.31 | H63: 7.63 | I63: 35.41 | J63: 235.66 | K63: 196 | L63: 16.14
D64: закуска | E64: Салат из белокачанной капусты,моркови и кукурузы-60 | F64: 60 | G64: 1.41 | H64: 4.19 | I64: 6.78 | J64: 65.3 | K64: 10 | L64: 7.69
D65: гор.блюдо | E65: Запеканка из творога со сгущенным молоком70/15 | F65: 85 | G65: 16.439 | H65: 6.862 | I65: 19.006 | J65: 206.454 | K65: 215 | L65: 36.16
D66: гор.напиток | E66: Компот из замороженных фруктов | F66: 200 | G66: 0.2 | H66: 0.1 | I66: 25.4 | J66: 99 | K66: 707 | L66: 5.48
D67: хлеб | E67: Хлеб пшеничный, обогащенный (для детского питания) | F67: 25 | G67: 1.98 | H67: 0.25 | I67: 12.04 | J67: 60.26 | K67: 1.00 | L67: 1.60
D68: хлеб | E68: Хлеб ржаной,обогащенный витаминами-15 | F68: 15 | G68: 0.35 | H68: 0.11 | I68: 1.1 | J68: 6.53 | K68: 3 | L68: 1.95
D69: сыр | E69: Сыр(порциями) | F69: 10 | G69: 2.32 | H69: 2.95 | I69: 0 | J69: 36.4 | K69: 9 | L69: 7.7
D70: сок
D71: йогурт | E71: Йогурт детский питьевой(витаминизированный)100 | F71: 100 | G71: 4 | H71: 1.5 | I71: 14.3 | J71: 90 | L71: 21
D72: итого | F72: =SUM(F63:F71) -> 695 | G72: =SUM(G63:G71) -> 33.00 | H72: =SUM(H63:H71) -> 23.59 | I72: 114.03 | J72: 799.60 | L72: =SUM(L63:L71) -> 97.72
A73: =A63 -> 1 | B73: =B63 -> 4 | C73: Обед | D73: закуска
D74: 1 блюдо
D75: 2 блюдо
D76: гарнир
D77: напиток
D78: хлеб бел.
D79: хлеб черн.
D82: итого | F82: =SUM(F73:F81) -> 0 | G82: =SUM(G73:G81) -> 0 | H82: =SUM(H73:H81) -> 0 | I82: 0 | J82: 0
A83: =A63 -> 1 | B83: =B63 -> 4 | C83: Итого за день: | F83: =SUM(F63:F71) -> 695 | G83: =SUM(G63:G71) -> 33.00 | H83: =SUM(H63:H71) -> 23.59 | I83: 114.03 | J83: 799.60 | L83: =L72 -> 97.72
A84: 1 | B84: 5 | C84: Завтрак | D84: гор.блюдо | E84: Картофельное пюре- 170 | F84: 170 | G84: 4.31 | H84: 5.78 | I84: 19.44 | J84: 144.50 | K84: 133 | L84: 7.31
D85: гор.блюдо | E85: Котлеты или биточки мясные 60 | F85: 60 | G85: 10.9 | H85: 8.36 | I85: 15.37 | J85: 181.32 | K85: 92 | L85: 34.6
D86: гор.блюдо | E86: Соус томатный 40 | F86: 40 | G86: 0.5 | H86: 2.27 | I86: 3.32 | J86: 35.29 | K86: 216 | L86: 4.13
D87: гор.напиток | E87: Напиток "Витошка" витаминный-200 | F87: 200 | G87: 0 | H87: 0 | I87: 1.5 | J87: 3.2 | K87: 287 | L87: 10
D88: хлеб | E88: Хлеб пшеничный, обогащенный (для детского питания) | F88: 25 | G88: 1.98 | H88: 0.25 | I88: 12.04 | J88: 60.26 | K88: 1.00 | L88: 1.60
D89: хлеб | E89: Хлеб ржаной,обогащенный витаминами-15 | F89: 15 | G89: 0.35 | H89: 0.11 | I89: 1.1 | J89: 6.53 | K89: 3 | L89: 1.95
D90: закуска | E90: Салат из моркови 60 | F90: 60 | G90: 0.66 | H90: 3.05 | I90: 9.51 | J90: 68.76 | K90: 16 | L90: 4.6
D91: печенье | E91: Печенье для детского питания 50 гр | F91: 50 | G91: 4 | H91: 5.5 | I91: 32.7 | J91: 196 | L91: 20
D92: итого | F92: =SUM(F84:F91) -> 620 | G92: =SUM(G84:G91) -> 22.70 | H92: =SUM(H84:H91) -> 25.32 | I92: 94.98 | J92: 695.86 | L92: =SUM(L84:L91) -> 84.19
A93: =A84 -> 1 | B93: =B84 -> 5 | C93: Обед | D93: закуска
D94: 1 блюдо
D95: 2 блюдо
D96: напиток
D97: хлеб бел.
D98: хлеб черн.
D99: пряник
D101: итого | F101: =SUM(F93:F100) -> 0 | G101: =SUM(G93:G100) -> 0.00 | H101: =SUM(H93:H100) -> 0.00 | I101: =SUM(I93:I100) -> 0.00 | J101: =SUM(J93:J100) -> 0.00
A102: =A84 -> 1 | B102: =B84 -> 5 | C102: Итого за день: | F102: =F92 -> 620 | G102: =G92 -> 22.70 | H102: =H92 -> 25.32 | I102: 94.98 | J102: 695.86 | K102: 0.00 | L102: 84.19
C103: Завтрак | D103: гор.блюдо | E103: Плов из птицы | F103: 200 | G103: 10.85 | H103: 22.69 | I103: 54.05 | J103: 462.03 | K103: 123 | L103: 57.08
D104: гор.напиток | E104: Чай с молоком и сахаром | F104: 200 | G104: 1.65 | H104: 1.65 | I104: 12.4 | J104: 71.4 | K104: 259 | L104: 6.34
D105: хлеб | E105: Хлеб пшеничный, обогащенный (для детского питания) | F105: 25 | G105: 1.98 | H105: 0.25 | I105: 12.04 | J105: 60.26 | K105: 1.00 | L105: 1.60
D106: хлеб | E106: Хлеб ржаной,обогащенный витаминами-15 | F106: 15 | G106: 0.35 | H106: 0.11 | I106: 1.1 | J106: 6.53 | K106: 3 | L106: 1.95
D107: сок | E107: Сок фруктовый в индивид упаковке, 0,2 л | F107: 200 | G107: 1 | H107: 0.2 | I107: 10.2 | J107: 92 | L107: 22
D109: итого | F109: =SUM(F103:F108) -> 640 | G109: =SUM(G103:G108) -> 15.83 | H109: =SUM(H103:H108) -> 24.90 | I109: =SUM(I103:I108) -> 89.79 | J109: =SUM(J103:J108) -> 692.22 | L109: =SUM(L103:L108) -> 88.97
A110: =#REF! ->  | B110: =#REF! ->  | C110: Обед | D110: закуска
D111: 1 блюдо
D112: 2 блюдо
D113: гарнир
D114: напиток
D115: хлеб бел.
D116: хлеб черн.
D119: итого | F119: =SUM(F110:F118) -> 0 | G119: =SUM(G110:G118) -> 0 | H119: =SUM(H110:H118) -> 0 | I119: 0 | J119: 0
A120: =#REF! ->  | B120: =#REF! ->  | C120: Итого за день: | F120: =SUM(F103:F107) -> 640 | G120: =SUM(G103:G107) -> 15.83 | H120: =SUM(H103:H107) -> 24.90 | I120: =SUM(I103:I107) -> 89.79 | J120: =SUM(J103:J107) -> 692.22 | L120: =L109 -> 88.97
A121: 2 | B121: 2 | C121: Завтрак | D121: гор.блюдо | E121: Суп картофельный с бобовыми и гренками, фрикадельками мясными | F121: 270 | G121: 19.24 | H121: 19.24 | I121: 19.24 | J121: 19.24 | K121: 64 и 39 | L121: 51.05
D122: гор.блюдо | E122: Каша пшенная молочная-150 | F122: 150 | G122: 5.6 | H122: 6.6 | I122: 26.4 | J122: 187 | K122: ДО7ХЕ19 | L122: 9.24
D123: сыр | E123: Сыр (порциями) | F123: 10 | G123: 2.32 | H123: 2.95 | I123: 0 | J123: 36.4 | K123: 9 | L123: 7.7
D124: фрукты | E124: Яблоки свежие | F124: 100 | G124: 0.4 | H124: 0.4 | I124: 9.8 | J124: 47 | L124: 15.3
D125: гор.напиток | E125: Какао с молоком | F125: 200 | G125: 4.6 | H125: 4.4 | I125: 12.5 | J125: 107.2 | K125: 13 | L125: 5.48
D126: хлеб | E126: Хлеб пшеничный, обогащенный (для детского питания) | F126: 25 | G126: 1.98 | H126: 0.25 | I126: 12.04 | J126: 60.26 | K126: 1.00 | L126: 1.60
D128: хлеб | E128: Хлеб ржаной,обогащенный витаминами-15 | F128: 15 | G128: 0.35 | H128: 0.11 | I128: 1.1 | J128: 6.53 | K128: 3 | L128: 1.95
D129: итого | F129: =SUM(F121:F128) -> 770 | G129: =SUM(G121:G128) -> 34.49 | H129: =SUM(H121:H128) -> 33.95 | I129: =SUM(I121:I128) -> 81.08 | J129: =SUM(J121:J128) -> 463.63 | L129: =SUM(L121:L128) -> 92.32
A130: =A121 -> 2 | B130: =B121 -> 2 | C130: Обед | D130: закуска
D131: 1 блюдо
D132: 2 блюдо
D133: гарнир
D134: напиток
D135: хлеб бел.
D136: хлеб черн.
D137: фрукты
D139: итого | F139: =SUM(F130:F138) -> 0 | G139: =SUM(G130:G138) -> 0 | H139: =SUM(H130:H138) -> 0 | I139: 0 | J139: 0
A140: =A121 -> 2 | B140: =B121 -> 2 | C140: Итого за день: | F140: =F129+F139 -> 770 | G140: =G129+G139 -> 34.49 | H140: =H129+H139 -> 33.95 | I140: 81.08 | J140: 463.63 | L140: =L129 -> 92.32
A141: 2 | B141: 3 | C141: Завтрак | D141: гор.блюдо | E141: Каша гречневая 170 | F141: 170 | G141: 9.87 | H141: 6.2 | I141: 44.6 | J141: 273.29 | K141: 330 | L141: 7.52
D142: гор.блюдо | E142: Филе грудки,припущенное с овощами 50/50г | F142: 100 | G142: 5.19 | H142: 13.26 | I142: 5.51 | J142: 162.98 | K142: 439 | L142: 43
D143: гор.напиток | E143: Напиток "Витошка" витаминный-200 | F143: 200 | G143: 0 | H143: 0 | I143: 1.5 | J143: 3.2 | K143: 287 | L143: 10
D144: хлеб | E144: Хлеб пшеничный, обогащенный (для детского питания) | F144: 25 | G144: 1.98 | H144: 0.25 | I144: 12.04 | J144: 60.26 | K144: 1.00 | L144: 1.60
D145: хлеб | E145: Хлеб ржаной,обогащенный витаминами-15 | F145: 15 | G145: 0.35 | H145: 0.11 | I145: 1.1 | J145: 6.53 | K145: 3 | L145: 1.95
D146: печенье | E146: Печенье для детского питания 50 гр | F146: 50 | G146: 4 | H146: 5.5 | I146: 32.7 | J146: 196 | L146: 20
D147: закуска | E147: Салат из свеклы с растительным маслом 60 | F147: 60 | G147: 0.99 | H147: 5 | I147: 5.94 | J147: 71.36 | K147: 24 | L147: 4.44
D148: итого | F148: =SUM(F141:F147) -> 620 | G148: =SUM(G141:G147) -> 22.38 | H148: =SUM(H141:H147) -> 30.32 | I148: =SUM(I141:I147) -> 103.39 | J148: =SUM(J141:J147) -> 773.62 | L148: =SUM(L141:L147) -> 88.51
A149: =A141 -> 2 | B149: =B141 -> 3 | C149: Обед | D149: закуска
D150: 1 блюдо
D151: 2 блюдо
D152: напиток
D153: фрукты
D154: хлеб бел.
D155: хлеб черн.
D158: итого | F158: =SUM(F149:F157) -> 0 | G158: =SUM(G149:G157) -> 0 | H158: =SUM(H149:H157) -> 0 | I158: 0 | J158: 0
A159: =A141 -> 2 | B159: =B141 -> 3 | C159: Итого за день: | F159: =F148 -> 620 | G159: =G148 -> 22.38 | H159: =H148 -> 30.32 | I159: 103.39 | J159: 773.62 | L159: 88.51
A160: 2 | B160: 4 | C160: Завтрак | D160: закуска | E160: Салат из моркови и яблок-60 | F160: 60 | G160: 0.56 | H160: 2.09 | I160: 5.86 | J160: 45.25 | K160: 18 | L160: 5.76
D161: гор.блюдо | E161: Макароны,запеченные с сыром-170 | F161: 170 | G161: 8.96 | H161: 15.18 | I161: 35.05 | J161: 316.93 | K161: 205 | L161: 27.06
D162: гор.блюдо | E162: Тефтели из говядины с рисом | F162: 60 | G162: 8.24 | H162: 12.18 | I162: 8.5 | J162: 176.53 | K162: 202 | L162: 34.58
D163: гор.блюдо | E163: Соус томатный | F163: 30 | G163: 0.16 | H163: 1.1 | I163: 1.57 | J163: 16.85 | K163: 264 | L163: 2.83
D164: гор.напиток | E164: Кофейный напиток | F164: 200 | G164: 2.91 | H164: 3.21 | I164: 14.73 | J164: 100.28 | K164: 275 | L164: 11.38
D165: сок
D166: хлеб | E166: Хлеб пшеничный, обогащенный (для детского питания) | F166: 25 | G166: 1.98 | H166: 0.25 | I166: 12.04 | J166: 60.26 | K166: 1.00 | L166: 1.60
D167: хлеб | E167: Хлеб ржаной,обогащенный витаминами-15 | F167: 15 | G167: 0.35 | H167: 0.11 | I167: 1.1 | J167: 6.53 | K167: 3 | L167: 1.95
D168: итого | F168: =SUM(F160:F167) -> 560 | G168: =SUM(G160:G167) -> 23.16 | H168: =SUM(H160:H167) -> 34.12 | I168: =SUM(I160:I167) -> 78.85 | J168: =SUM(J160:J167) -> 722.63 | L168: =SUM(L160:L167) -> 85.16
A169: =A160 -> 2 | B169: =B160 -> 4 | C169: Обед | D169: закуска
D170: 1 блюдо
D171: 2 блюдо
D172: напиток
D173: хлеб бел.
D174: хлеб черн.
D178: итого | F178: =SUM(F169:F176) -> 0 | G178: =SUM(G169:G177) -> 0 | H178: =SUM(H169:H177) -> 0 | I178: 0 | J178: 0
A179: =A160 -> 2 | B179: =B160 -> 4 | C179: Итого за день: | F179: =SUM(F160:F167) -> 560 | G179: =SUM(G160:G167) -> 23.16 | H179: =SUM(H160:H167) -> 34.12 | I179: =SUM(I160:I167) -> 78.85 | J179: =SUM(J160:J167) -> 722.63 | L179: =L168 -> 85.16
A180: 2 | B180: 5 | C180: Завтрак | D180: закуска | E180: Салат из белокачанной капусты,моркови и кукурузы-60 | F180: 60 | G180: 1.41 | H180: 4.19 | I180: 6.78 | J180: 65.3 | K180: 10 | L180: 7.68
D181: гор.блюдо | E181: Картофельное пюре, 150 | F181: 150 | G181: 3.8 | H181: 4.83 | I181: 17.17 | J181: 125.66 | K181: 133 | L181: 6.23
D182: гор.блюдо | E182: Котлета рыбная, 60 | F182: 60 | G182: 7.47 | H182: 9.57 | I182: 9.6 | J182: 154.9 | K182: 83 | L182: 34.6
D183: гор.напиток | E183: Компот из смеси сухофруктов | F183: 200 | G183: 0.78 | H183: 0.06 | I183: 30.1 | J183: 30.1 | K183: 707 | L183: 5.48
D184: хлеб | E184: Хлеб пшеничный, обогащенный (для детского питания) | F184: 25 | G184: 1.98 | H184: 0.25 | I184: 12.04 | J184: 60.26 | K184: 1.00 | L184: 1.60
D185: хлеб | E185: Хлеб ржаной,обогащенный витаминами-15 | F185: 15 | G185: 0.35 | H185: 0.11 | I185: 1.1 | J185: 6.53 | K185: 3 | L185: 1.95
D186: йогурт | E186: Йогурт детский питьевой(витаминизированный)100 | F186: 100 | G186: 4 | H186: 1.5 | I186: 14.3 | J186: 90 | K186: 1 | L186: 21
D188: итого | F188: =SUM(F180:F187) -> 610 | G188: =SUM(G180:G187) -> 19.79 | H188: =SUM(H180:H187) -> 20.51 | I188: =SUM(I180:I187) -> 91.09 | J188: =SUM(J180:J187) -> 532.75 | L188: =SUM(L180:L187) -> 78.54
A189: =A180 -> 2 | B189: =B180 -> 5 | C189: Обед | D189: закуска
D190: 1 блюдо
D191: 2 блюдо
D192: гарнир
D193: напиток
D194: хлеб бел.
D195: хлеб черн.
D198: итого | F198: =SUM(F189:F197) -> 0 | G198: =SUM(G189:G197) -> 0 | H198: =SUM(H189:H197) -> 0 | I198: 0 | J198: 0
A199: =A180 -> 2 | B199: =B180 -> 5 | C199: Итого за день: | F199: =F188+F198 -> 610 | G199: =G188+G198 -> 19.79 | H199: =H188+H198 -> 20.51 | I199: 91.09 | J199: 532.75 | L199: =L188+L198 -> 78.54
C200: Среднее значение за период: | F200: =(F24+F42+F62+F83+F102+F120+F140+F159+F179+F199)/(IF(F24=0,0,1)+IF(F42=0,0,1)+IF(F62=0,0,1)+IF(F83=0,0,1)+IF(F102=0,0,1)+IF(F120=0,0,1)+IF(F140=0,0,1)+IF(F159=0,0,1)+IF(F179=0,0,1)+IF(F199=0,0,1)) -> 655.00 | G200: =(G24+G42+G62+G83+G102+G120+G140+G159+G179+G199)/(IF(G24=0,0,1)+IF(G42=0,0,1)+IF(G62=0,0,1)+IF(G83=0,0,1)+IF(G102=0,0,1)+IF(G120=0,0,1)+IF(G140=0,0,1)+IF(G159=0,0,1)+IF(G179=0,0,1)+IF(G199=0,0,1)) -> 22.62 | H200: =(H24+H42+H62+H83+H102+H120+H140+H159+H179+H199)/(IF(H24=0,0,1)+IF(H42=0,0,1)+IF(H62=0,0,1)+IF(H83=0,0,1)+IF(H102=0,0,1)+IF(H120=0,0,1)+IF(H140=0,0,1)+IF(H159=0,0,1)+IF(H179=0,0,1)+IF(H199=0,0,1)) -> 24.87 | I200: =(I24+I42+I62+I83+I102+I120+I140+I159+I179+I199)/(IF(I24=0,0,1)+IF(I42=0,0,1)+IF(I62=0,0,1)+IF(I83=0,0,1)+IF(I102=0,0,1)+IF(I120=0,0,1)+IF(I140=0,0,1)+IF(I159=0,0,1)+IF(I179=0,0,1)+IF(I199=0,0,1)) -> 91.63 | J200: =(J24+J42+J62+J83+J102+J120+J140+J159+J179+J199)/(IF(J24=0,0,1)+IF(J42=0,0,1)+IF(J62=0,0,1)+IF(J83=0,0,1)+IF(J102=0,0,1)+IF(J120=0,0,1)+IF(J140=0,0,1)+IF(J159=0,0,1)+IF(J179=0,0,1)+IF(J199=0,0,1)) -> 635.11 | L200: =(L199+L179+L159+L140+L120+L102+L83+L62+L42+L24)/10 -> 84.767
